Cogmind - Beta 16 @@@ ROGUE MODE // 2025.10.27 @ 15:49:19 Player: f3-rnm Result: Destroyed by 9K-LB1(R) with Subdweller Machine Gun Performance ------------- Evolutions (0) 0 Regions Visited (2) 400 Robots Destroyed (19) 95 Value Destroyed (479) 479 Prototype IDs (0) 0 Alien Tech Used (0) 0 Bonus (0) 0 TOTAL SCORE: 974 Bonus ------- None Cogmind --------- Core Integrity 0/250 Matter 198/300 Energy 200/200 System Corruption 1% Temperature Cool (0) Movement Rolling (215) Ox9 Location -10/Subcaves Parts ------- > --- POWER (1) -------- Subdweller Power Source > --- PROPULSION (2) --- Wheel > --- UTILITY (2) ------ Huge Storage Unit Makeshift Light Armor Plating > --- WEAPON (2) ------- Battle Cannon Grenade Launcher > --- INVENTORY (25) --- Subdweller Power Source Small Storage Unit Medium Matter Pod (100) Machine Analyzer Seismic Detector Medium Laser Subdweller Laser Battle Rifle Battle Rifle Subdweller Machine Gun Enhanced Flamer Peak State ------------ > --- POWER ------------ Subdweller Power Source > --- PROPULSION ------- Wheel > --- UTILITY ---------- Huge Storage Unit Makeshift Light Armor Plating > --- WEAPON ----------- Battle Cannon Slug Cannon > --- INVENTORY -------- Subdweller Power Source Small Storage Unit Medium Matter Pod Machine Analyzer Seismic Detector Medium Laser Subdweller Laser Battle Rifle Battle Rifle Subdweller Machine Gun Grenade Launcher Enhanced Flamer [Rating: 16] Favorites ----------- Power Light Ion Engine Engine Light Ion Engine Power Core Light Nuclear Core Propulsion Light Treads Treads Light Treads Wheel Wheel Utility Small Storage Unit Device Subdweller Optics Storage Small Storage Unit Protection Light Armor Plating Weapon Light Assault Rifle Energy Gun Subdweller Laser Ballistic Gun Light Assault Rifle Ballistic Cannon Battle Cannon Launcher Grenade Launcher Build | -11 -10 -10 ------- Run | Yrd Mat Sub Slots Evolved . | . . . Power . | . . . Propulsion . | . . . Utility . | . . . Weapon . | . . . Parts Attached 19 | 6 3 10 Power 4 | 1 2 1 Engine 3 | 1 1 1 Core 1 | . 1 . Reactor . | . . . Propulsion 3 | 2 . 1 Treads 2 | 2 . . Leg . | . . . Wheel 1 | . . 1 Hover . | . . . Flight . | . . . Utility 5 | 1 1 3 Device 1 | . . 1 Storage 2 | 1 . 1 Processor . | . . . Hackware . | . . . Protection 2 | . 1 1 Artifact . | . . . Weapon 7 | 2 . 5 Energy Gun 2 | . . 2 Energy Cannon . | . . . Ballistic Gun 2 | 2 . . Ballistic Cannon 2 | . . 2 Launcher 1 | . . 1 Special Weapon . | . . . Impact Weapon . | . . . Slashing Weapon . | . . . Piercing Weapon . | . . . Special Melee Weapon . | . . . Unidentified Prototypes . | . . . Parts Lost 10 | . 3 7 Power 3 | . 2 1 Propulsion 2 | . . 2 Utility 1 | . 1 . Weapon 4 | . . 4 Highest Loss Streak 6 | . 1 6 To Critical Strikes . | . . . Average Backups 7 | 1 6 9 Power . | . . . Propulsion . | . 1 . Utility 2 | . 2 3 Weapon 3 | . 2 4 Tool/Special . | . . . Unused Backups 10 | . 1 9 Power 1 | . . 1 Propulsion . | . . . Utility 3 | . . 3 Weapon 6 | . 1 5 Tool/Special . | . . . Average Slot Usage (%) 88 | . 94 82 Engine 9 | . 9 9 Core 3 | . 3 2 Treads 18 | . 28 7 Wheel 4 | . . 10 Storage 14 | . 14 14 Protection 8 | . 9 8 Ballistic Gun 18 | . 28 7 Ballistic Cannon 7 | . . 15 Launcher 1 | . . 2 Peak Build Rating 16 | 6 9 16 Average Rating 9 | 4 7 12 On Entrance 4 | . 6 8 Avg Prop Armor Cover (%) . | . . . Naked Turns . | . . . Heaviest Build 99 | 10 15 99 Greatest Support 40 | 40 40 40 Greatest Overweight (x) 9 | . . 9 Average Overweight (x) 2 | . . 5 Largest Inventory Capacity 25 | 8 8 25 Average Capacity 12 | 6 8 18 Most Carried 12 | 3 8 12 Average Carried 7 | 1 6 9 Final Capacity 25 | 8 8 25 Final Carried 11 | 3 7 11 Class Distribution -------------------- 100% | Mutant Dominant Class ---------------- Mutant | -10/Materials Mutant | -10/Subcaves Resources | -11 -10 -10 ----------- Run | Yrd Mat Sub Matter Collected 672 | 149 255 268 Remotely . | . . . Salvage Created 494 | . 375 119 Parts 32 | . 28 4 Haulers Intercepted 1 | . 1 . Recyclers Shooed 2 | . 2 . Parts Field Recycled . | . . . Retrieved Matter . | . . . Parts Self-Destructed 6 | . . 6 Prevented . | . . . Parts Restored . | . . . Kills | -11 -10 -10 ------- Run | Yrd Mat Sub Combat Hostiles Destroyed 17 | . 10 7 Melee 1 | . 1 . Guns 13 | . 9 4 Cannons 1 | . . 1 AOE 2 | . . 2 Classes Destroyed 5 | . 4 1 Builder 1 | . 1 . Hauler 1 | . 1 . Swarmer 6 | . 3 3 Grunt 9 | . 7 2 Subdweller 2 | . . 2 Best Kill Streak 3 | . 2 3 Combat Bots Only 3 | . 2 3 Max Kills in Single Turn 1 | . 1 1 Gunslinging . | . . . Exploded 1 | . . 1 Melee 1 | . 1 . Uniques/NPCs Destroyed . | . . . Combat | -11 -10 -10 -------- Run | Yrd Mat Sub Hostile Shots Fired 136 | . 61 75 Missed 42 | . 19 23 Hits 94 | . 42 52 Projectile 94 | . 42 52 Damage Taken 1427 | . 476 951 Core 267 | . 86 181 Absorbed by Shields . | . . . Core Remaining (%) 100 | 100 . . Volleys Fired 82 | . 37 45 Largest 2 | . 2 2 Hottest 100 | . 40 100 Shots Fired 150 | . 74 76 Gun 117 | . 74 43 Cannon 28 | . . 28 Launcher 5 | . . 5 Special . | . . . Kinetic 132 | . 74 58 Thermal 13 | . . 13 Explosive 5 | . . 5 Electromagnetic . | . . . Robot Hit Streak 17 | . 7 17 Robot Miss Streak 5 | . 3 5 Penetration Max . | . . . Secondary Targets 4 | . 2 2 Max Gunslinging Chain 1 | . 1 1 Shots Hit Robots 103 | . 50 53 Core Hits 36 | . 25 11 Critical Kills . | . . . Critical Parts Destroyed 2 | . 2 . Critical Strikes 5 | . 2 3 Burn 1 | . . 1 Destroy 4 | . 2 2 Melee Attacks . | . . . Impact . | . . . Slashing . | . . . Piercing . | . . . Sneak Attacks . | . . . Combat Hostiles . | . . . Follow-up Attacks . | . . . Damage Inflicted 1235 | . 425 810 Guns 735 | . 423 312 Cannons 299 | . . 299 Explosions 199 | . . 199 Melee . | . . . Ramming 2 | . 2 . Kinetic 871 | . 423 448 Thermal 163 | . . 163 Explosive 199 | . . 199 Electromagnetic . | . . . Impact . | . . . Slashing . | . . . Piercing . | . . . Highest Corruption 1 | . 1 1 Average Corruption 1 | . 1 1 Corruption Purged . | . . . Corruption Blocked . | . . . Effects 5 | . 2 3 Message Errors 1 | . 1 . Matter Fused 3 | . . 3 Energy Discharges 1 | . 1 . Overload Shots . | . . . Overflow Damage 47 | . . 47 Projectiles 16 | . . 16 Explosions 31 | . . 31 Melee . | . . . Knockbacks 8 | . . 8 Impact . | . . . Kinetic 8 | . . 8 Secondary . | . . . Self-Inflicted Damage . | . . . Shots . | . . . Rammed . | . . . Targets Rammed 1 | . 1 . Kicked . | . . . Crushed 1 | . 1 . Highest Temperature 38 | . 38 4 Average Temperature 11 | . 11 4 Received Heat Transfer 354 | . 162 192 Siege Activations . | . . . Martial Activations . | . . . Shielding Activations . | . . . Robots Disrupted . | . . . Combat Hostiles . | . . . Robots Corrupted . | . . . Combat Hostiles . | . . . Parts Fried . | . . . Impact Corruptions . | . . . Robots Melted . | . . . Combat Hostiles . | . . . Parts Melted 1 | . . 1 Heat Transferred 433 | . . 433 Parts Sabotaged . | . . . Parts Stolen . | . . . Parts Stripped . | . . . Power Chain Reactions . | . . . Alert | -11 -10 -10 ------- Run | Yrd Mat Sub Maximum Alert Level . | . . . Low Security (%) 100 | 100 100 . Level 1 . | . . . Level 2 . | . . . Level 3 . | . . . Level 4 . | . . . Level 5 . | . . . High Security . | . . . Max Security . | . . . Peak Influence 71 | . 71 . Initial . | . . . Average 19 | . 21 . Influence Increases 391 | . 271 120 Destroy 0b10 Robot/C 300 | . 200 100 Destroy 0b10 Robot/NC 10 | . 10 . Destroy Leader 62 | . 42 20 Successful Hack 4 | . 4 . Partial Spotted 15 | . 15 . Influence Decreases 373 | . 219 154 Entered New Map 26 | . . 26 Time Decay 281 | . 189 92 Lost Part 66 | . 30 36 Squads Dispatched 3 | . 3 . Investigation 2 | . 2 . Extermination . | . . . Reinforcement 1 | . 1 . Assault . | . . . Garrison . | . . . Intercept . | . . . Searches Triggered . | . . . Construction Impeded . | . . . Haulers Reinforced . | . . . Active Scanning Responses . | . . . Cargo Convoy Interrupts . | . . . Stealth | -11 -10 -10 --------- Run | Yrd Mat Sub Distress Signals 1 | . 1 . Communications Jammed . | . . . Distress Signals . | . . . Times Spotted 24 | . 15 9 Peak Tracking Total 3 | . 3 2 Tactical Retreats . | . . . Traps | -11 -10 -10 ------- Run | Yrd Mat Sub Traps Triggered 3 | . 2 1 Indirectly . | . . . Trap Hack Attempts . | . . . Triggered . | . . . Disarmed 6 | . 6 . Reprogrammed . | . . . Reused . | . . . Traps Extracted . | . . . Installed . | . . . Triggered . | . . . Machines | -11 -10 -10 ---------- Run | Yrd Mat Sub Machines Disabled . | . . . Max in Single Turn . | . . . Machines Repaired . | . . . Machines Dismantled . | . . . Machines Sabotaged . | . . . Overloaded Fab Kills . | . . . Hacking | -11 -10 -10 --------- Run | Yrd Mat Sub Machines Accessed 1 | . 1 . Terminals 1 | . 1 . Fabricators . | . . . Repair Stations . | . . . Recycling Units . | . . . Scanalyzers . | . . . Garrison Access . | . . . Total Hacks 3 | . 3 . Successful 3 | . 3 . Failed . | . . . Catastrophic . | . . . Database Lockouts . | . . . Manual . | . . . Terminals 3 | . 3 . Fabricators . | . . . Repair Stations . | . . . Recycling Units . | . . . Scanalyzers . | . . . Garrison Access . | . . . Terminal Hacks 3 | . 3 . Alert Level 1 | . 1 . Locate Traps 1 | . 1 . Disarm Traps 1 | . 1 . Fabricator Hacks . | . . . Repair Station Hacks . | . . . Recycling Unit Hacks . | . . . Scanalyzer . | . . . Garrison Access Hacks . | . . . Unauthorized Hacks . | . . . Terminals . | . . . Fabricators . | . . . Repair Stations . | . . . Recycling Units . | . . . Scanalyzers . | . . . Garrison Access . | . . . Data Cores Recovered . | . . . Used . | . . . Hacking Detections 1 | . 1 . Full Trace Events 1 | . 1 . Feedback Events . | . . . Feedback Blocked . | . . . Robot Schematics Acquired . | . . . Robots Built . | . . . Authchips . | . . . Time . | . . . Total Robot Build Rating . | . . . Part Schematics Acquired . | . . . Parts Built . | . . . Authchips . | . . . Time . | . . . Total Part Build Rating . | . . . Part Studies Acquired . | . . . Parts Repaired . | . . . Time . | . . . Parts Recycled . | . . . Recycled Matter . | . . . Retrieved Matter . | . . . Retrieved Components . | . . . Parts Scanalyzed . | . . . Part Schematics Acquired . | . . . Parts Damaged . | . . . Bothacking | -11 -10 -10 ------------ Run | Yrd Mat Sub Used RIF Installer . | . . . Robots Hacked . | . . . Non-combat . | . . . Combat . | . . . Robot Hacks Applied . | . . . Relay Couplers Released . | . . . Fabnet Peak Effective % . | . . . Robots Rewired . | . . . Allies Hacked . | . . . Hacks Repelled . | . . . Allies | -11 -10 -10 -------- Run | Yrd Mat Sub Total Allies . | . . . Largest Group . | . . . Highest-Rated Group . | . . . Highest-Rated Ally . | . . . Total Orders . | . . . Ally Attacks . | . . . Total Damage . | . . . Kills . | . . . Allies Corrupted . | . . . Allies Melted . | . . . Intel | -11 -10 -10 ------- Run | Yrd Mat Sub Active Infowar (turns) 54 | . . 54 Optics 54 | . . 54 Robot Analysis Total . | . . . Derelict Logs Recovered 1 | . . 1 Drone Launches . | . . . Drone Recoveries . | . . . Exploration | -11 -10 -10 ------------- Run | Yrd Mat Sub Turns Passed 1181 | 62 609 510 Spaces Moved 478 | 34 263 181 Core 3 | 3 . . Treads 341 | 31 263 47 Legs . | . . . Wheels 134 | . . 134 Hover . | . . . Flight . | . . . Fastest Speed 50 | 50 160 80 Average Speed 169 | 150 160 186 Slowest Speed 215 | 160 160 215 Overloaded Moves . | . . . Propulsion Burnouts . | . . . Robots Hopped . | . . . Potential Cave-ins . | . . . Cave-ins Triggered . | . . . Exploration Rate (%) 25 | 4 58 14 Regions Visited 2 Branch Regions 1 Pre-discovered Areas . | . . . Known Exits Taken . | . . . Unknown Exits Taken 2 | 1 1 . Scrap Searched 8 | . . 8 Spaces Dug . | . . . Terrain Destroyed 22 | . . 22 Melee . | . . . Projectile 6 | . . 6 AOE 16 | . . 16 Terrain Rammed . | . . . Walls Destroyed . | . . . Machines Disabled . | . . . Actions | -11 -10 -10 --------- Run | Yrd Mat Sub Total 711 | 42 391 278 Wait 114 | . 81 33 Move 476 | 33 262 181 Hop . | . . . Pick Up 16 | 3 6 7 Fast Attach 14 | 6 2 6 Attach 4 | . 1 3 Detach . | . . . Swap 1 | . . 1 Drop 3 | . 1 2 Fire 82 | . 37 45 Melee . | . . . Ram . | . . . Kick . | . . . Crush 1 | . 1 . Escape Stasis . | . . . Rewire . | . . . Trap . | . . . Miscellaneous . | . . . Route ------- -11/Scrapyard -10/Materials (discovered 4 exits: [*Mat] / [*Min x2] / [*Sub]) -10/Subcaves (discovered 1 exit: [*Mat]) History --------- Turn | Location | Event 14 | -11/Scrapyard | Discovered new exit (range 15) 63 | -11/Scrapyard | Entered Materials 242 | -10/Materials | Discovered new exit (range 3) 316 | -10/Materials | Build established: Mutant 401 | -10/Materials | Discovered new exit (range 12) 465 | -10/Materials | Discovered new exit (range 11) 650 | -10/Materials | Discovered new exit (range 7) 672 | -10/Materials | Entered Subcaves 673 | -10/Subcaves | Approached by a straggling Scientist 757 | -10/Subcaves | Disturbed a concealed Subdweller 818 | -10/Subcaves | Core integrity fell below 50% 848 | -10/Subcaves | Lost 6 parts (1p2n3w) 1007 | -10/Subcaves | Discovered new exit (range 9) 1104 | -10/Subcaves | Core integrity fell below 20% 1156 | -10/Subcaves | Disturbed a concealed Subdweller 1161 | -10/Subcaves | Disturbed a concealed Subdweller 1182 | -10/Subcaves | Destroyed by 9K-LB1(R) with Subdweller Machine Gun Last Messages --------------- 01109_ Destroyed Imp. Heat Sink. 01109_ G-47 Trooper knocked back. 01109_ Destroyed Lgt. Nuclear Core. 01109_ G-47 Trooper destroyed. 01112_ Acquired 14 matter. 01116_ Subatomizers dissect the Sub. Power Source. 01129_ The unstable cave ceiling collapses. 01130_ Subatomizers dissect the Sub. Power Source. 01131_ The unstable cave ceiling collapses. 01155_ Searching scrap... 01155_ Found Mak. Light Armor Plating. 01155_ Found Flamer. 01155_ Found 54 Matter. 01156_ GV-1V8(R) angrily emerges from the Twisted Machinery. 01156_ Acquired 54 matter. 01157_ GV-1V8(R) knocked back. 01161_ 9K-LB1(R) angrily emerges from the Twisted Machinery. 01163_ 9K-LB1(R) knocked back. 01166_ GV-1V8(R) affixes Scrap Shield Fragment to Scrap Shield. 01171_ 9K-LB1(R) affixes Scrap Shield Fragment to Scrap Shield. Map ----- +----------------------------------------------------+ | #####????# ##?????????????????????????????? | | ????????## #?????????????????????????????? | | ???????## #?????????????????????????????? | | ??????## ## #????????????????????????????? | | ??????# #?# ##????????????????????????????? | | ??????# ##? #?????????????????????????????? | | ?????## ## #?????????????????????????????? | | ?????# ## #?????????????????????????????? | | ?????# ##?#####?????????????????????????????? | | ????## ##????????????????????????????????????? | | ????# ##?????????????????????????????????????? | | ????# ##?????????????????????????????????????? | | ????## #??????????????????###????????????????? | | ?????### ############????###?# ####???? ????????? | | ??????# ## # # # ###?## ## # # ????????? | | ??????# ### ????????? | | ??????# # ### ## ## #???????????? | | ??????#####?######## #??????#???????????? | | ??????????????????# ** ##?? # ??????????? | | ??????????????????## < ### ?????????? | | ??????????????????## #????????????????? | | ?????????????????## #????????????????? | | ????????????# ## % #????????????????? | | ???????????? """"# # ## #???????????????? | | ????????????"" # # ##?# #???????????????? | | ????????????"" " % @#???####???????????????? | | ????????????"" " # # % ##??????????????????????? | | ????????????"""""" #??????????????????????? | | ???????????????##% # #R ###??????????????????????? | | ???????????????#* ! ## ##????????????????????? | | ??????????????# ## # R #????????????????????? | | ??????????????#"##<"#! #????????????????????? | | ??????????????#?#&$ |# ## #????????????????????? | | ????????????????#"$$<#=#? ##????????????????????? | | ????????????????##<<%#%#? #?????????????????????? | | ?????????????????####=*#?? #?????????????????????? | | ????????????????????? #?? ?????????????????????? | | ?????????????????????###?? ##????????????????????? | | ???????????????????????????#?????????????????????? | | ?????????????????????????????????????????????????? | | ?????????????????????????????????????????????????? | | ?????????????????????????????????????????????????? | | ?????????????????????????????????????????????????? | | ?????????????????????????????????????????????????? | | ?????????????????????????????????????????????????? | | ?????????????????????????????????????????????????? | | ?????????????????????????????????????????????????? | | ?????????????????????????????????????????????????? | | ?????????????????????????????????????????????????? | | ?????????????????????????????????????????????????? | +----------------------------------------------------+ Best States ------------- Heat Dissipation 25 Energy Generation 15 Energy Capacity 200 Matter Stores 300 Matter Capacity 300 Sight Range 21 Terrain Scan Density 10 Armor Coverage 150 Evasion (%) 44 Recoil Reduction 2 Item Schematics ----------------- None Robot Schematics ------------------ None Fabricated ------------ Nothing Repaired ---------- Nothing Studied --------- None Alien Tech Used ----------------- None Achievements -------------- None Challenges ------------ None Game ------ Seed TrapOvertunedSubcomponent Manual? 0 Play Time 00:07:15 Cumulative 395.2 hours Start 2025.10.26 @ 21:24:03 End 2025.10.27 @ 15:49:19 Sessions 4 Manual Loads 0 Difficulty Rogue Special Mode None Game No. 357 Rogue 321 Adventurer 36 Explorer 0 Win Type - Total 15 Types 7/0/8/0/0/0/0/0/0/0 Lore% 71 Gallery% 84 Achievement% 54 Wizard Run 0 Options --------- Layout 0 ASCII 0 Keyboard 0 Movement Mouse Keybinds 0 Fullscreen 1 Font 18/SmallcapsGlow Map View 76x50 Zoom Use 0% Tactical HUD 1 Map Filters NONE Filters NONE Steam 1 RUN: bfe1f579-c898-4cf2-85a4-eb955f2ea250